lending/lending_fUSD_20240111
["ID","MTS","AMOUNT","RATE_DAILY","PERIOD"]
[311194378,1704978649077,-500.0,0.00039452,4]
[311194379,1704978649086,-500.0,0.00039452,4]
[311194380,1704978649096,-500.0,0.00039452,4]
[311194381,1704978649105,-500.0,0.00039452,4]
[311194382,1704978649114,-500.0,0.00039452,4]
[311194383,1704978649124,-500.0,0.00039452,2]
[311194384,1704978649134,-500.0,0.00039452,4]
[311194385,1704978649143,-500.0,0.00039452,4]
[311194386,1704978649153,-629.33,0.00039452,4]
[311194387,1704978649162,-500.0,0.00039452,4]
[311194388,1704978649171,-500.0,0.00039452,4]
[311194389,1704978649181,-517.99,0.00039452,4]
[311194390,1704978649191,-627.82775366,0.00039452,4]
[311194391,1704978649200,-500.0,0.00039452,4]
[311194392,1704978649209,-500.0,0.00039452,4]
[311194393,1704978649218,-500.0,0.00039452,4]
[311194394,1704978649228,-500.0,0.00039452,4]
[311194395,1704978649237,-500.0,0.00039452,4]
[311194396,1704978649246,-500.0,0.00039452,4]
[311194397,1704978649255,-500.0,0.00039452,4]
[311194398,1704978649264,-500.0,0.00039452,4]
[311194399,1704978649274,-500.0,0.00039452,4]
[311194400,1704978649283,-500.0,0.00039452,4]
[311194401,1704978649293,-537.27,0.00039452,4]
[311194402,1704978649302,-500.0,0.00039452,4]
[311194403,1704978649311,-500.0,0.00039452,4]
[311194404,1704978649320,-500.0,0.00039452,4]
[311194405,1704978649329,-500.0,0.00039452,4]
[311194406,1704978649338,-513.9495582,0.00039452,4]
[311194407,1704978649347,-500.0,0.00039452,4]
[311194408,1704978649356,-500.0,0.00039452,4]
[311194409,1704978649366,-500.0,0.00039452,4]
[311194410,1704978649375,-500.0,0.00039452,4]
[311194411,1704978649384,-500.0,0.00039452,4]
[311194412,1704978649393,-500.0,0.00039452,4]
[311194413,1704978649402,-500.0,0.00039452,4]
[311194414,1704978649412,-500.0,0.00039452,4]
[311194415,1704978649421,-500.0,0.00039452,4]
[311194416,1704978649431,-500.0,0.00039452,4]
[311194417,1704978649440,-500.0,0.00039452,4]
[311194418,1704978649450,-500.0,0.00039452,4]
[311194419,1704978649459,-500.0,0.00039452,4]
[311194420,1704978649468,-500.0,0.00039452,4]
[311194421,1704978649477,-500.0,0.00039452,4]
[311194422,1704978649487,-500.0,0.00039452,4]
[311194423,1704978649496,-470.24,0.00039452,4]
[311194424,1704978649505,-500.0,0.00039452,4]
[311194425,1704978649514,-500.0,0.00039452,4]
[311194426,1704978649523,-500.0,0.00039452,4]
[311194427,1704978649561,-488.88,0.00039452,4]
[311194428,1704978649571,-500.0,0.00039452,4]
[311194429,1704978649582,-500.0,0.00039452,4]
[311194430,1704978649592,-500.0,0.00039452,4]
[311194431,1704978649602,-500.0,0.00039452,4]
[311194432,1704978649612,-500.0,0.00039452,4]
[311194433,1704978649622,-500.0,0.00039452,4]
[311194434,1704978649632,-314.15904715,0.00039452,4]
[311194435,1704978649642,-500.0,0.00039452,4]
[311194436,1704978649653,-506.72,0.00039452,4]
[311194437,1704978649663,-500.0,0.00039452,4]
[311194438,1704978649672,-500.0,0.00039452,4]
[311194439,1704978649684,-500.0,0.00039452,4]
[311194440,1704978649694,-500.0,0.00039452,4]
[311194441,1704978649704,-500.0,0.00039452,4]
[311194442,1704978649714,-500.0,0.00039452,4]
[311194443,1704978649725,-288.24,0.00039452,4]
[311194444,1704978649735,-500.0,0.00039452,4]
[311194445,1704978649745,-799.93,0.00039452,4]
[311194446,1704978649756,-500.0,0.00039452,4]
[311194447,1704978649768,-7512.31,0.00039452,4]
[311194448,1704978649778,-908.42,0.00039452,4]
[311194449,1704978649788,-519.92,0.00039452,4]
[311194450,1704978649801,-500.0,0.00039452,4]
[311194451,1704978649811,-500.0,0.00039452,4]
[311194452,1704978649822,-413.12,0.00039452,4]
[311194453,1704978649831,-500.0,0.00039452,4]
[311194454,1704978649840,-500.0,0.00039452,4]
[311194455,1704978649850,-500.0,0.00039452,4]
[311194456,1704978649859,-500.0,0.00039452,4]
[311194457,1704978649868,-500.0,0.00039452,4]
[311194458,1704978649877,-500.0,0.00039452,4]
[311194459,1704978649886,-500.0,0.00039452,4]
[311194460,1704978649896,-500.0,0.00039452,4]
[311194461,1704978649906,-755.39,0.00039452,4]
[311194462,1704978649916,-573.85,0.00039452,4]
[311194463,1704978649927,-500.0,0.00039452,4]
[311194464,1704978649939,-500.0,0.00039452,4]
[311194465,1704978649949,-500.0,0.00039452,4]
[311194466,1704978649959,-500.0,0.00039452,4]
[311194467,1704978649970,-500.0,0.00039452,4]
[311194468,1704978649980,-500.0,0.00039452,4]
[311194469,1704978649990,-500.0,0.00039452,4]
[311194470,1704978650001,-500.0,0.00039452,4]
[311194471,1704978650010,-500.0,0.00039452,4]
[311194472,1704978650020,-207.16,0.00039452,4]
[311194473,1704978650030,-500.0,0.00039452,4]
[311194474,1704978650039,-500.0,0.00039452,4]
[311194475,1704978650049,-500.0,0.00039452,4]
[311194476,1704978650058,-500.0,0.00039452,4]
[311194477,1704978650069,-500.0,0.00039452,4]
[311194478,1704978650078,-500.0,0.00039452,4]
[311194479,1704978650088,-500.0,0.00039452,4]
[311194480,1704978650098,-500.0,0.00039452,4]
[311194481,1704978650107,-500.0,0.00039452,4]
[311194482,1704978650117,-254.2,0.00039452,4]
[311194483,1704978650126,-500.0,0.00039452,4]
[311194484,1704978650136,-500.0,0.00039452,4]
[311194485,1704978650145,-500.0,0.00039452,4]
[311194486,1704978650155,-487.97629422,0.00039452,4]
[311194487,1704978650165,-500.0,0.00039452,4]
[311194488,1704978650174,-1181.97,0.00039452,4]
[311194489,1704978650186,-500.0,0.00039452,4]
[311194490,1704978650195,-357.59,0.00039452,4]
[311194491,1704978650205,-500.0,0.00039452,4]
[311194492,1704978650214,-500.0,0.00039452,4]
[311194493,1704978650224,-500.0,0.00039452,4]
[311194494,1704978650233,-500.0,0.00039452,4]
[311194495,1704978650243,-500.0,0.00039452,4]
[311194496,1704978650253,-500.0,0.00039452,4]
[311194497,1704978650262,-500.0,0.00039452,4]
[311194498,1704978650272,-500.0,0.00039452,4]
[311194499,1704978650281,-500.0,0.00039452,4]
[311194500,1704978650291,-500.0,0.00039452,4]
[311194501,1704978650301,-551.43,0.00039452,4]
[311194502,1704978650310,-500.0,0.00039452,4]
[311194503,1704978650321,-500.0,0.00039452,4]
[311194504,1704978650331,-500.0,0.00039452,4]
[311194505,1704978650340,-500.0,0.00039452,4]
[311194506,1704978650350,-500.0,0.00039452,4]
[311194507,1704978650361,-500.0,0.00039452,4]
[311194508,1704978650371,-913.59,0.00039452,4]
[311194509,1704978650381,-1281.5,0.00039452,4]
[311194510,1704978650392,-623.8,0.00039452,4]
[311194511,1704978650402,-500.0,0.00039452,4]
[311194512,1704978650412,-500.0,0.00039452,4]
[311194513,1704978650422,-500.0,0.00039452,4]
[311194514,1704978650433,-500.0,0.00039452,4]
[311194515,1704978650442,-1966.04,0.00039452,4]
[311194516,1704978650461,-500.0,0.00039452,4]
[311194517,1704978650474,-500.0,0.00039452,4]
[311194518,1704978650485,-500.0,0.00039452,4]
[311194519,1704978650495,-500.0,0.00039452,4]
[311194520,1704978650505,-500.0,0.00039452,4]
[311194521,1704978650515,-500.0,0.00039452,4]
[311194522,1704978650525,-2839.29,0.00039452,4]
[311194523,1704978650535,-500.0,0.00039452,4]
[311194524,1704978650546,-500.0,0.00039452,4]
[311194525,1704978650557,-330.24,0.00039452,4]
[311194526,1704978650567,-500.0,0.00039452,4]
[311194527,1704978650578,-954.32,0.00039452,4]
[311194528,1704978650589,-500.0,0.00039452,4]
[311194529,1704978650599,-500.0,0.00039452,4]
[311194530,1704978650609,-586.72,0.00039452,4]
[311194531,1704978650619,-500.0,0.00039452,4]
[311194532,1704978650628,-253.37,0.00039452,4]
[311194533,1704978650638,-566.84,0.00039452,4]
[311194534,1704978650648,-500.0,0.00039452,4]
[311194535,1704978650657,-1615.09,0.00039452,4]
[311194536,1704978650666,-500.0,0.00039452,4]
[311194537,1704978650676,-500.0,0.00039452,4]
[311194538,1704978650688,-500.0,0.00039452,4]
[311194539,1704978650697,-500.0,0.00039452,4]
[311194540,1704978650707,-500.0,0.00039452,4]
[311194541,1704978650716,-500.0,0.00039452,4]
[311194542,1704978650726,-500.0,0.00039452,4]
[311194543,1704978650736,-500.0,0.00039452,4]
[311194544,1704978650746,-500.0,0.00039452,4]
[311194545,1704978650756,-500.0,0.00039452,4]
[311194546,1704978650765,-611.05,0.00039452,4]
[311194547,1704978650775,-500.0,0.00039452,4]
[311194548,1704978650786,-500.0,0.00039452,4]
[311194549,1704978650800,-4590.07,0.00039452,4]
[311194550,1704978650811,-663.95,0.00039452,4]
[311194551,1704978650821,-575.43,0.00039452,4]
[311194552,1704978650832,-500.0,0.00039452,4]
[311194553,1704978650842,-500.0,0.00039452,4]
[311194554,1704978650854,-500.0,0.00039452,4]
[311194555,1704978650864,-500.0,0.00039452,4]
[311194556,1704978650875,-537.84,0.00039452,4]
[311194557,1704978650885,-500.0,0.00039452,4]
[311194558,1704978650895,-500.0,0.00039452,4]
[311194559,1704978650905,-500.0,0.00039452,4]
[311194560,1704978650914,-500.0,0.00039452,4]
[311194561,1704978650924,-935.97,0.00039452,4]
[311194562,1704978650935,-500.0,0.00039452,4]
[311194563,1704978650945,-500.0,0.00039452,4]
[311194564,1704978650955,-956.72,0.00039452,4]
[311194565,1704978650965,-500.0,0.00039452,4]
[311194566,1704978650974,-500.0,0.00039452,4]
[311194567,1704978650987,-1726.33,0.00039452,4]
[311194568,1704978650997,-500.0,0.00039452,4]
[311194569,1704978651006,-500.0,0.00039452,4]
[311194570,1704978651016,-1108.91,0.00039452,4]
[311194571,1704978651026,-500.0,0.00039452,4]
[311194572,1704978651036,-513.62,0.00039452,4]
[311194573,1704978651045,-500.0,0.00039452,4]
[311194574,1704978651056,-500.0,0.00039452,5]
[311194575,1704978651066,-500.0,0.00039452,4]
[311194576,1704978651076,-500.0,0.00039452,4]
[311194577,1704978651086,-500.0,0.00039452,4]
[311194578,1704978651096,-557.28,0.00039452,4]
[311194579,1704978651106,-500.0,0.00039452,4]
[311194580,1704978651116,-636.68,0.00039452,4]
[311194581,1704978651126,-500.0,0.00039452,4]
[311194582,1704978651136,-500.0,0.00039452,4]
[311194583,1704978651147,-520.0,0.00039452,4]
[311194584,1704978651157,-500.0,0.00039452,4]
[311194585,1704978651168,-500.0,0.00039452,4]
[311194586,1704978651178,-500.0,0.00039452,4]
[311194587,1704978651193,-500.0,0.00039452,4]
[311194588,1704978651202,-500.0,0.00039452,4]
[311194589,1704978651212,-500.0,0.00039452,4]
[311194590,1704978651222,-500.0,0.00039452,4]
[311194591,1704978651232,-500.0,0.00039452,4]
[311194592,1704978651242,-673.75,0.00039452,4]
[311194593,1704978651251,-500.0,0.00039452,4]
[311194594,1704978651261,-500.0,0.00039452,4]
[311194595,1704978651271,-500.0,0.00039452,4]
[311194596,1704978651281,-500.0,0.00039452,4]
[311194597,1704978651291,-1296.45,0.00039452,4]
[311194598,1704978651302,-500.0,0.00039452,4]
[311194599,1704978651312,-500.0,0.00039452,4]
[311194600,1704978651323,-500.0,0.00039452,4]
[311194601,1704978651336,-1001.34,0.00039452,4]
[311194602,1704978651346,-500.0,0.00039452,4]
[311194603,1704978651356,-500.0,0.00039452,4]
[311194604,1704978651365,-500.0,0.00039452,4]
[311194605,1704978651375,-500.0,0.00039452,5]
[311194606,1704978651385,-500.0,0.00039452,4]
[311194607,1704978651394,-500.0,0.00039452,4]
[311194608,1704978651403,-531.47,0.00039452,4]
[311194609,1704978651413,-500.0,0.00039452,4]
[311194610,1704978651422,-500.0,0.00039452,4]
[311194611,1704978651433,-500.0,0.00039452,4]
[311194612,1704978651443,-500.0,0.00039452,4]
[311194613,1704978651453,-500.0,0.00039452,4]
[311194614,1704978651463,-500.0,0.00039452,4]
[311194615,1704978651473,-506.5124578,0.00039452,4]
[311194616,1704978651482,-500.0,0.00039452,4]
[311194617,1704978651492,-500.0,0.00039452,4]
[311194618,1704978651503,-1817.72,0.00039452,4]
[311194619,1704978651513,-500.0,0.00039452,4]
[311194620,1704978651524,-500.0,0.00039452,4]
[311194621,1704978651534,-500.0,0.00039452,4]
[311194622,1704978651544,-410.48,0.00039452,4]
[311194623,1704978651554,-500.0,0.00039452,4]
[311194624,1704978651564,-782.8,0.00039452,4]
[311194625,1704978651574,-500.0,0.00039452,4]
[311194626,1704978651584,-500.0,0.00039452,4]
[311194627,1704978651595,-500.0,0.00039452,4]
[311194628,1704978651605,-1749.36,0.00039452,4]
[311194629,1704978651616,-500.0,0.00039452,4]
[311194630,1704978651626,-500.0,0.00039452,4]
[311194631,1704978651636,-500.0,0.00039452,4]
[311194632,1704978651646,-500.0,0.00039452,4]
[311194633,1704978651656,-500.0,0.00039452,4]
[311194634,1704978651667,-219.0,0.00039452,4]
[311194635,1704978651680,-500.0,0.00039452,4]
[311194636,1704978651692,-500.0,0.00039452,4]
[311194637,1704978651702,-500.0,0.00039452,4]
[311194638,1704978651713,-608.95,0.00039452,4]
[311194639,1704978651724,-500.0,0.00039452,4]
[311194640,1704978651735,-193.16846,0.00039452,7]
[311194641,1704978651746,-193.16846,0.00039452,7]
[311194642,1704978651756,-151.0,0.00039452,7]
[311194643,1704978651768,-151.0,0.00039452,7]
[311194644,1704978651779,-151.0,0.00039452,7]
[311194645,1704978651791,-151.0,0.00039452,7]
[311194646,1704978651802,-158.13,0.00039462,2]
[311194647,1704978651813,-150.0,0.00039531,2]
[311194648,1704978651824,-317.61960847,0.00039537,2]
[311194649,1704978651836,-153.84,0.00039542,2]
[311194650,1704978651846,-200.0,0.00039596,20]
[311194651,1704978651857,-800.0,0.00039596,10]
[311194652,1704978651869,-3552.70937555,0.00039599,2]
[311194653,1704978651879,-2559.45360879,0.00039599,2]
[311194654,1704978651888,-9595.66510166,0.000396,2]
[311194655,1704978651900,-666.0,0.00039624,2]
[311194656,1704978651910,-886.66,0.00039624,4]
[311194657,1704978651921,-160.98844321,0.00039624,2]
[311194658,1704978651934,-15907.7044,0.00039625,2]
[311194659,1704978651944,-155.09666374,0.00039625,2]
[311194660,1704978651954,-177.3,0.0003963,2]
[311194661,1704978651965,-151.34312527,0.00039636,5]
[311194662,1704978651976,-264.75,0.0003967,2]
[311194663,1704978651987,-800.0,0.00039699,2]
[311194664,1704978651997,-153.62,0.000397,3]
[311194665,1704978652007,-153.62,0.000397,3]
[311194666,1704978652017,-153.62,0.000397,3]
[311194667,1704978652027,-153.62,0.000397,3]
[311194668,1704978652037,-153.62,0.000397,3]
[311194669,1704978652048,-153.62,0.000397,3]
[311194670,1704978652059,-153.62,0.000397,3]
[311194671,1704978652070,-886.66,0.00039712,4]
[311194672,1704978652080,-187.107016,0.00039715,7]
[311194673,1704978652090,-151.37277,0.00039715,7]
[311194674,1704978652100,-886.66,0.0003972,4]
[311194675,1704978652110,-937.04818772,0.00039721,4]
[311194676,1704978652121,-341.21116514,0.00039721,4]
[311194677,1704978652131,-155.47167839,0.00039721,4]
[311194678,1704978652142,-186.35155735,0.00039721,2]
[311194679,1704978652153,-749.45687653,0.00039721,4]
[311194680,1704978652163,-210.92031935,0.00039721,4]
[311194681,1704978652173,-155.54683003,0.00039722,4]
[311194682,1704978652185,-220.69241614,0.00039722,4]
[311194683,1704978652196,-531.06,0.00039722,4]
[311194684,1704978652206,-4680.86238529,0.00039722,4]
[311194685,1704978652217,-233.80752851,0.00039722,4]
[311194686,1704978652228,-3117.37725108,0.00039722,4]
[311194687,1704978652239,-385.00102524,0.00039722,4]
[311194688,1704978652249,-198.74725172,0.00039722,4]
[311194689,1704978652260,-576.35910875,0.00039723,4]
[311194690,1704978652270,-390.04705579,0.00039723,4]
[311194691,1704978652280,-16732.40708376,0.00039723,4]
[311194692,1704978652290,-255.81339565,0.00039723,4]
[311194693,1704978652301,-472.09928176,0.00039723,4]
[311194694,1704978652312,-163.82054097,0.00039723,4]
[311194695,1704978652322,-156.50666801,0.00039723,4]
[311194696,1704978652334,-3037.57683783,0.00039723,4]
[311194697,1704978652344,-493.85260773,0.00039723,4]
[311194698,1704978652356,-2302.03358731,0.00039723,4]
[311194699,1704978652366,-259.11478358,0.00039723,4]
[311194700,1704978652388,-151.0,0.00039723,7]
[311194701,1704978652400,-151.0,0.00039723,7]
[311194702,1704978652411,-932.39338065,0.00039724,2]
[311194703,1704978652422,-3926.28285426,0.00039724,2]
[311194704,1704978652435,-3969.71224033,0.00039724,4]
[311194705,1704978652445,-213.88249061,0.00039724,4]
[311194706,1704978652821,-500.0,0.00039178,4]
[311194707,1704978652831,-500.0,0.00039452,4]
[311194708,1704978652843,-334.28964392,0.00039724,4]
[311194709,1704978652854,-182.36477019,0.00039724,4]
[311194710,1704978652864,-644.10031462,0.00039724,4]
[311194711,1704978652878,-1267.65875993,0.00039724,4]
[311194712,1704978652891,-804.528,0.00039724,4]
[311194713,1704978652905,-358.01197968,0.00039724,4]
[311194714,1704978652918,-261.99999998,0.00039724,4]
[311194715,1704978652932,-829.099827,0.00039724,4]
[311194716,1704978652944,-1233.86748,0.00039724,4]
[311194717,1704978652962,-3877.35831646,0.00039724,4]
[311194718,1704978652974,-7174.41392425,0.00039724,2]
[311194719,1704978653004,-598.44913979,0.00039724,2]
[311194720,1704978653052,-25529.70961462,0.00039724,2]
[311194721,1704978653061,-608.93901834,0.00039724,4]
[311194722,1704978653072,-331.18091377,0.00039724,4]
[311194723,1704978653083,-155.90149969,0.00039724,4]
[311194724,1704978653093,-886.66,0.00039724,4]
[311194725,1704978653103,-886.66,0.00039724,4]
[311194726,1704978653114,-886.66,0.00039725,4]
[311194727,1704978653124,-411.83,0.00039726,4]
[311194728,1704978653134,-500.0,0.00039726,4]
[311194729,1704978653144,-500.0,0.00039726,4]
[311194730,1704978653154,-500.0,0.00039726,4]
[311194731,1704978653167,-500.0,0.00039726,4]
[311194732,1704978653177,-537.10421933,0.00039726,4]
[311194733,1704978653190,-500.0,0.00039726,4]
[311194734,1704978653200,-434.09,0.00039726,4]
[311194735,1704978653211,-500.0,0.00039726,4]
[311194736,1704978653221,-500.0,0.00039726,4]
[311194737,1704978653231,-500.0,0.00039726,4]
[311194738,1704978653241,-500.0,0.00039726,4]
[311194739,1704978653251,-500.0,0.00039726,4]
[311194740,1704978653261,-500.0,0.00039726,4]
[311194741,1704978653271,-524.94356062,0.00039726,4]
[311194742,1704978653281,-500.0,0.00039726,4]
[311194743,1704978653291,-500.0,0.00039726,4]
[311194744,1704978653301,-500.0,0.00039726,4]
[311194745,1704978653311,-500.0,0.00039726,4]
[311194746,1704978653320,-500.0,0.00039726,4]
[311194747,1704978653334,-178.17767694,0.00039726,4]
[311194748,1704978653343,-500.0,0.00039726,4]
[311194749,1704978653353,-500.0,0.00039726,4]
[311194750,1704978653364,-500.0,0.00039726,4]
[311194751,1704978653374,-500.0,0.00039726,4]
[311194752,1704978653383,-500.0,0.00039726,4]
[311194753,1704978653393,-500.0,0.00039726,4]
[311194754,1704978653403,-500.0,0.00039726,4]
[311194755,1704978653413,-500.0,0.00039726,4]
[311194756,1704978653423,-500.0,0.00039726,4]
[311194757,1704978653435,-500.0,0.00039726,4]
[311194758,1704978653444,-500.0,0.00039726,4]
[311194759,1704978653454,-500.0,0.00039726,4]
[311194760,1704978653464,-216.28,0.00039726,4]
[311194761,1704978653474,-500.0,0.00039726,4]
[311194762,1704978653484,-414.13,0.00039726,4]
[311194763,1704978653494,-500.0,0.00039726,4]
[311194764,1704978653504,-500.0,0.00039726,4]
[311194765,1704978653514,-500.0,0.00039726,4]
[311194766,1704978653524,-500.0,0.00039726,4]
[311194767,1704978653534,-500.0,0.00039726,4]
[311194768,1704978653544,-500.0,0.00039726,4]
[311194769,1704978653554,-500.0,0.00039726,4]
[311194770,1704978653564,-500.0,0.00039726,4]
[311194771,1704978653574,-500.0,0.00039726,4]
[311194772,1704978653584,-500.0,0.00039726,4]
[311194773,1704978653594,-500.0,0.00039726,4]
[311194774,1704978653604,-500.0,0.00039726,4]
[311194775,1704978653614,-500.0,0.00039726,4]
[311194776,1704978653623,-482.2,0.00039726,4]
[311194777,1704978653633,-500.0,0.00039726,4]
[311194778,1704978653643,-500.0,0.00039726,4]
[311194779,1704978653653,-515.74894103,0.00039726,4]
[311194780,1704978653663,-500.0,0.00039726,4]
[311194781,1704978653674,-500.0,0.00039726,4]
[311194782,1704978653688,-194.88,0.00039726,4]
[311194783,1704978653926,-500.0,0.00039726,4]
[311194784,1704978653939,-500.0,0.00039726,4]
[311194785,1704978653948,-500.0,0.00039726,4]
[311194786,1704978653958,-500.0,0.00039726,4]
[311194787,1704978653967,-500.0,0.00039726,4]
[311194788,1704978653977,-500.0,0.00039726,4]
[311194789,1704978653986,-500.0,0.00039726,4]
[311194790,1704978653995,-500.0,0.00039726,4]
[311194791,1704978654005,-500.0,0.00039726,4]
[311194792,1704978654014,-423.64559066,0.00039726,4]
[311194793,1704978654024,-607.60547695,0.00039726,4]
[311194794,1704978654033,-500.0,0.00039726,4]
[311194795,1704978654043,-500.0,0.00039726,4]
[311194796,1704978654052,-500.0,0.00039726,4]
[311194797,1704978654062,-500.0,0.00039726,4]
[311194798,1704978654071,-500.0,0.00039726,4]
[311194799,1704978654081,-500.0,0.00039726,4]
[311194800,1704978654091,-500.0,0.00039726,4]
[311194801,1704978654100,-500.0,0.00039726,4]
[311194802,1704978654110,-388.3,0.00039726,4]
[311194803,1704978654120,-500.0,0.00039726,4]
[311194804,1704978654130,-253.0,0.00039726,4]
[311194805,1704978654139,-512.53612344,0.00039726,4]
[311194806,1704978654148,-500.0,0.00039726,4]
[311194807,1704978654158,-500.0,0.00039726,4]
[311194808,1704978654167,-248.68757352,0.00039726,4]
[311194809,1704978654177,-500.0,0.00039726,4]
[311194810,1704978654189,-500.0,0.00039726,4]
[311194811,1704978654199,-500.0,0.00039726,4]
[311194812,1704978654208,-193.21,0.00039726,4]
[311194813,1704978654218,-187.96388406,0.00039726,4]
[311194814,1704978654227,-500.0,0.00039726,4]
[311194815,1704978654237,-200.89,0.00039726,4]
[311194816,1704978654246,-500.0,0.00039726,4]
[311194817,1704978654256,-500.0,0.00039726,4]
[311194818,1704978654265,-500.0,0.00039726,4]
[311194819,1704978654275,-500.0,0.00039726,4]
[311194820,1704978654284,-500.0,0.00039726,4]
[311194821,1704978654294,-500.0,0.00039726,4]
[311194822,1704978654303,-500.0,0.00039726,4]
[311194823,1704978654313,-500.0,0.00039726,4]
[311194824,1704978654322,-500.0,0.00039726,4]
[311194825,1704978654332,-500.0,0.00039726,4]
[311194826,1704978654341,-484.29,0.00039726,4]
[311194827,1704978654350,-500.0,0.00039726,4]
[311194828,1704978654360,-500.0,0.00039726,4]
[311194829,1704978654369,-500.0,0.00039726,4]
[311194830,1704978654378,-500.0,0.00039726,4]
[311194831,1704978654387,-500.0,0.00039726,4]
[311194832,1704978654396,-500.0,0.00039726,4]
[311194833,1704978654406,-500.0,0.00039726,4]
[311194834,1704978654415,-500.0,0.00039726,4]
[311194835,1704978654428,-569.18,0.00039726,4]
[311194836,1704978654439,-500.0,0.00039726,4]
[311194837,1704978654448,-500.0,0.00039726,4]
[311194838,1704978654457,-500.0,0.00039726,4]
[311194839,1704978654467,-500.0,0.00039726,4]
[311194840,1704978654476,-500.0,0.00039726,4]
[311194841,1704978654486,-500.0,0.00039726,4]
[311194842,1704978654495,-500.0,0.00039726,4]
[311194843,1704978654505,-500.0,0.00039726,4]
[311194844,1704978654515,-394.72,0.00039726,4]
[311194845,1704978654525,-500.0,0.00039726,4]
[311194846,1704978654534,-500.0,0.00039726,4]
[311194847,1704978654544,-500.0,0.00039726,4]
[311194848,1704978654554,-507.09,0.00039726,4]
[311194849,1704978654563,-500.0,0.00039726,4]
[311194850,1704978654573,-335.41,0.00039726,4]
[311194851,1704978654583,-500.0,0.00039726,4]
[311194852,1704978654593,-500.0,0.00039726,4]
[311194853,1704978654602,-500.0,0.00039726,4]
[311194854,1704978654612,-500.0,0.00039726,4]
[311194855,1704978654621,-500.0,0.00039726,4]
[311194856,1704978654631,-500.0,0.00039726,4]
[311194857,1704978654640,-500.0,0.00039726,4]
[311194858,1704978654649,-799.93,0.00039726,4]
[311194859,1704978654658,-500.0,0.00039726,4]
[311194860,1704978654668,-7512.31,0.00039726,4]
[311194861,1704978654677,-908.42,0.00039726,4]
[311194862,1704978654688,-286.53,0.00039726,4]
[311194863,1704978654697,-500.0,0.00039726,4]
[311194864,1704978654707,-500.0,0.00039726,4]
[311194865,1704978654716,-278.64,0.00039726,4]
[311194866,1704978654725,-500.0,0.00039726,4]
[311194867,1704978654734,-356.21,0.00039726,4]
[311194868,1704978654743,-219.55,0.00039726,4]
[311194869,1704978654753,-500.0,0.00039726,4]
[311194870,1704978654762,-500.0,0.00039726,4]
[311194871,1704978654772,-755.39,0.00039726,4]
[311194872,1704978654781,-573.85,0.00039726,4]
[311194873,1704978654790,-500.0,0.00039726,4]
[311194874,1704978654805,-500.0,0.00039726,4]
[311194875,1704978654813,-500.0,0.00039726,4]
[311194876,1704978654823,-500.0,0.00039726,4]
[311194877,1704978654833,-500.0,0.00039726,4]